[Event "RUS-ch Women Rapid 2019"]
[Site "Sochi"]
[Date "2019.10.16"]
[Round "9.4"]
[White "Guseva, Marina"]
[Black "Chernyak, Viktoria"]
[Result "0-1"]
[ECO "D35"]
[WhiteElo "2335"]
[BlackElo "2284"]
[Annotator "NA"]
[PlyCount "86"]
[EventDate "2019.10.15"]
[EventType "swiss"]
[EventCountry "RUS"]
[SourceTitle "playchess.com"]
[Source "ChessBase"]
[SourceQuality "1"]
[TimeControl "900+10"]

1. d4 {[%emt 0:00:00]} d5 {[%emt 0:00:00]} 2. c4 {[%emt 0:00:00]} e6 {[%emt 0:00:00]} 3. Nc3 {[%emt 0:00:00]} Nf6 {[%emt 0:00:00]} 4. cxd5 {[%emt 0:00:00]} exd5 {[%emt 0:00:00]} 5. Bg5 {[%emt 0:00:00]} Bb4 {[%emt 0:00:00]} 6. e3 {[%emt 0:00:02]} h6 {[%emt 0:00:00]} 7. Bh4 {[%emt 0:00:02]} g5 {[%emt 0:00:18]} 8. Bg3 {[%emt 0:00:01]} Ne4 {[%emt 0:00:03]} 9. Nge2 {[%emt 0:00:14]} h5 {[%emt 0:01:35]} 10. h3 {[%emt 0:00:08]} Nxg3 {[%emt 0:00:24]} 11. Nxg3 {[%emt 0:00:03]} h4 {[%emt 0:00:04]} 12. Nge2 {[%emt 0:00:41]} c6 {[%emt 0:00:25]} 13. Qc2 {[%emt 0:00:24]} Be6 {[%emt 0:00:18]} 14. O-O-O {[%emt 0:00:12]} Nd7 {[%emt 0:01:50]} 15. Kb1 {[%emt 0:00:29]} Bd6 {[%emt 0:01:10]} 16. e4 {[%emt 0:01:55]} dxe4 {[%emt 0:00:29]} 17. Nxe4 {[%emt 0:00:03]} Be7 {[%emt 0:00:09]} 18. N2c3 {[%emt 0:00:21]} Qa5 {[%emt 0:00:23]} 19. Be2 {[%emt 0:00:51]} Nb6 {[%emt 0:00:25]} 20. Nc5 {[%emt 0:04:35]} Bxc5 {[%emt 0:00:47]} 21. dxc5 {[%emt 0:00:02]} Qxc5 {[%emt 0:00:07]} 22. Bg4 {[%emt 0:00:03]} f5 {[%emt 0:01:30]} 23. Rhe1 {[%emt 0:00:48]} Kf7 {[%emt 0:00:03]} 24. Qe2 {[%emt 0:02:36]} Rh6 {[%emt 0:00:39]} 25. Bh5+ {[%emt 0:02:47]} Kg7 {[%emt 0:00:31]} 26. f4 {[%emt 0:00:51]} gxf4 {[%emt 0:00:34]} 27. Qd2 {[%emt 0:01:25]} Nd5 {[%emt 0:02:29]} 28. Nxd5 {[%emt 0:00:10]} Bxd5 {[%emt 0:00:35]} 29. Bf3 {[%emt 0:00:18]} Qd6 {[%emt 0:02:21]} 30. Bxd5 {[%emt 0:00:24]} cxd5 {[%emt 0:00:03]} 31. Qc3+ {[%emt 0:00:10]} Rf6 {[%emt 0:00:51]} 32. Rd4 {[%emt 0:00:25]} Qc6 {[%emt 0:00:07]} 33. Qd2 {[%emt 0:00:03]} Re8 {[%emt 0:00:23]} 34. Rc1 {[%emt 0:00:05]} Qe6 {[%emt 0:00:33]} 35. Qxf4 {[%emt 0:00:02]} Qe3 {[%emt 0:00:06]} 36. Qxh4 {[%emt 0:00:34]} Rf7 {[%emt 0:00:49]} 37. Rf4 {[%emt 0:00:09]} Re6 {[%emt 0:00:26]} 38. Rcf1 {[%emt 0:00:16]} Rg6 {[%emt 0:00:29]} 39. Ka1 {[%emt 0:00:08]} Rxg2 {[%emt 0:00:03]} 40. a3 {[%emt 0:00:04]} Rc7 {[%emt 0:00:23]} 41. Rxf5 {[%emt 0:00:09]} Rc1+ {[%emt 0:00:06]} 42. Ka2 {[%emt 0:00:09]} Rxb2+ {[%emt 0:00:11]} 43. Kxb2 {[%emt 0:00:01]} Qc3+ {[%emt 0:00:01]} 0-1

[Event "RUS-ch Women Rapid 2019"]
[Site "Sochi"]
[Date "2019.10.16"]
[Round "9.6"]
[White "Bivol, Alina"]
[Black "Lysenko, Margarita"]
[Result "1/2-1/2"]
[ECO "A20"]
[WhiteElo "2283"]
[BlackElo "2243"]
[Annotator "NA"]
[PlyCount "104"]
[EventDate "2019.10.15"]
[EventType "swiss"]
[EventCountry "RUS"]
[SourceTitle "playchess.com"]
[Source "ChessBase"]
[SourceQuality "1"]
[TimeControl "900+10"]

1. c4 {[%emt 0:00:00]} e5 {[%emt 0:00:00]} 2. g3 {[%emt 0:00:00]} Nf6 {[%emt 0:00:03]} 3. Bg2 {[%emt 0:00:00]} d5 {[%emt 0:00:04]} 4. cxd5 {[%emt 0:00:00]} Nxd5 {[%emt 0:00:01]} 5. Nc3 {[%emt 0:00:00]} Nb6 {[%emt 0:00:05]} 6. Nf3 {[%emt 0:00:10]} Nc6 {[%emt 0:00:04]} 7. O-O {[%emt 0:00:29]} Be7 {[%emt 0:00:07]} 8. a4 {[%emt 0:00:42]} a5 {[%emt 0:00:26]} 9. d4 {[%emt 0:00:12]} exd4 {[%emt 0:00:41]} 10. Nb5 {[%emt 0:00:01]} O-O {[%emt 0:03:12]} 11. Nfxd4 {[%emt 0:00:25]} Nxd4 {[%emt 0:00:04]} 12. Qxd4 {[%emt 0:00:53]} Qxd4 {[%emt 0:02:38]} 13. Nxd4 {[%emt 0:00:02]} c6 {[%emt 0:00:02]} 14. Bd2 {[%emt 0:03:05]} Rd8 {[%emt 0:01:47]} 15. Bc3 {[%emt 0:00:01]} Nd5 {[%emt 0:00:17]} 16. Rfd1 {[%emt 0:00:04]} h5 {[%emt 0:05:31]} 17. Be1 {[%emt 0:01:16]} h4 {[%emt 0:00:52]} 18. Nb3 {[%emt 0:00:17]} hxg3 {[%emt 0:00:21]} 19. hxg3 {[%emt 0:00:13]} Nb4 {[%emt 0:00:11]} 20. Rxd8+ {[%emt 0:00:30]} Bxd8 {[%emt 0:00:01]} 21. Rd1 {[%emt 0:00:01]} Bb6 {[%emt 0:00:18]} 22. Bc3 {[%emt 0:00:53]} Be6 {[%emt 0:00:17]} 23. Nc1 {[%emt 0:00:48]} Rd8 {[%emt 0:00:46]} 24. Rxd8+ {[%emt 0:00:03]} Bxd8 {[%emt 0:00:01]} 25. e4 {[%emt 0:00:20]} Na2 {[%emt 0:00:23]} 26. Nxa2 {[%emt 0:01:59]} Bxa2 {[%emt 0:00:02]} 27. b4 {[%emt 0:00:05]} axb4 28. Bxb4 b6 {[%emt 0:01:00]} 29. e5 {[%emt 0:00:23]} c5 {[%emt 0:00:01]} 30. Bc3 {[%emt 0:00:06]} f6 {[%emt 0:00:16]} 31. f4 {[%emt 0:00:15]} Kf7 {[%emt 0:00:14]} 32. Kf2 {[%emt 0:00:09]} Ke6 {[%emt 0:00:10]} 33. Ke3 {[%emt 0:00:28]} Bb3 {[%emt 0:00:12]} 34. Bc6 {[%emt 0:00:46]} Bc7 {[%emt 0:00:12]} 35. exf6 {[%emt 0:00:08]} gxf6 {[%emt 0:00:02]} 36. g4 {[%emt 0:00:18]} Bd1 {[%emt 0:00:17]} 37. f5+ {[%emt 0:01:38]} Ke7 {[%emt 0:00:11]} 38. g5 {[%emt 0:01:08]} fxg5 {[%emt 0:00:02]} 39. Bg7 {[%emt 0:00:23]} Bb3 {[%emt 0:00:18]} 40. Kf3 {[%emt 0:01:18]} Kf7 {[%emt 0:00:05]} 41. Bc3 {[%emt 0:00:31]} Bd8 {[%emt 0:00:20]} 42. Bd2 {[%emt 0:00:28]} Bf6 {[%emt 0:00:13]} 43. a5 {[%emt 0:00:02]} bxa5 {[%emt 0:00:05]} 44. Bxa5 {[%emt 0:00:01]} Bd1+ {[%emt 0:00:16]} 45. Ke3 {[%emt 0:00:12]} Bc2 {[%emt 0:00:03]} 46. Bd5+ {[%emt 0:00:18]} Kg7 {[%emt 0:00:10]} 47. Be6 {[%emt 0:00:01]} Bd4+ {[%emt 0:00:16]} 48. Ke2 {[%emt 0:00:18]} g4 {[%emt 0:00:10]} 49. f6+ {[%emt 0:00:06]} Kxf6 {[%emt 0:00:03]} 50. Bxg4 {[%emt 0:00:01]} c4 {[%emt 0:00:12]} 51. Kd2 {[%emt 0:00:01]} Bd3 {[%emt 0:00:04]} 52. Bc3 {[%emt 0:00:05]} Bxc3+ 1/2-1/2

[Event "RUS-ch Women Rapid 2019"]
[Site "Sochi"]
[Date "2019.10.16"]
[Round "9.7"]
[White "Ovod, Evgenija"]
[Black "Borisova, Ekaterina"]
[Result "1/2-1/2"]
[ECO "B22"]
[WhiteElo "2347"]
[BlackElo "2347"]
[Annotator "NA"]
[PlyCount "76"]
[EventDate "2019.10.15"]
[EventType "swiss"]
[EventCountry "RUS"]
[SourceTitle "playchess.com"]
[Source "ChessBase"]
[SourceQuality "1"]
[TimeControl "900+10"]

1. e4 {[%emt 0:00:00]} c5 {[%emt 0:00:00]} 2. c3 {[%emt 0:00:00]} d6 {[%emt 0:00:00]} 3. d4 {[%emt 0:00:00]} Nf6 {[%emt 0:00:01]} 4. Bd3 {[%emt 0:00:00]} g6 {[%emt 0:00:01]} 5. Nf3 {[%emt 0:00:02]} Bg7 {[%emt 0:00:01]} 6. O-O {[%emt 0:00:01]} O-O {[%emt 0:00:02]} 7. h3 {[%emt 0:00:14]} Nc6 {[%emt 0:00:01]} 8. Be3 {[%emt 0:00:09]} cxd4 {[%emt 0:00:36]} 9. cxd4 {[%emt 0:00:03]} Nb4 {[%emt 0:00:01]} 10. Nc3 {[%emt 0:00:07]} Nxd3 {[%emt 0:00:17]} 11. Qxd3 {[%emt 0:00:01]} b6 {[%emt 0:00:55]} 12. d5 {[%emt 0:00:17]} Nd7 {[%emt 0:00:06]} 13. Bd4 {[%emt 0:00:32]} Ne5 {[%emt 0:00:42]} 14. Nxe5 {[%emt 0:00:26]} dxe5 {[%emt 0:00:02]} 15. Be3 {[%emt 0:00:04]} e6 {[%emt 0:00:47]} 16. Rfd1 {[%emt 0:00:43]} exd5 {[%emt 0:00:10]} 17. Nxd5 {[%emt 0:00:03]} Be6 {[%emt 0:00:11]} 18. Qa3 {[%emt 0:00:50]} Bxd5 {[%emt 0:02:05]} 19. Rxd5 {[%emt 0:00:01]} Qh4 {[%emt 0:00:02]} 20. f3 {[%emt 0:00:00]} Rfd8 {[%emt 0:02:29]} 21. Rad1 {[%emt 0:00:22]} Rxd5 {[%emt 0:01:19]} 22. Rxd5 {[%emt 0:03:55]} h5 23. Bxb6 {[%emt 0:00:01]} Qe1+ {[%emt 0:00:45]} 24. Kh2 {[%emt 0:00:11]} Bh6 {[%emt 0:00:02]} 25. Bg1 {[%emt 0:00:07]} Bf4+ {[%emt 0:03:02]} 26. Kh1 {[%emt 0:00:04]} Rc8 {[%emt 0:00:03]} 27. Qxa7 {[%emt 0:00:10]} Qg3 28. Qe7 {[%emt 0:06:44]} Rc1 {[%emt 0:03:30]} 29. Rd8+ {[%emt 0:00:02]} Kg7 {[%emt 0:00:02]} 30. Qf8+ {[%emt 0:00:02]} Kf6 {[%emt 0:00:01]} 31. Rd6+ {[%emt 0:00:00]} Kg5 {[%emt 0:00:01]} 32. Qd8+ {[%emt 0:00:00]} Kh6 {[%emt 0:00:03]} 33. Qh8+ {[%emt 0:00:04]} Kg5 {[%emt 0:00:00]} 34. Qf6+ {[%emt 0:00:19]} Kh6 {[%emt 0:00:00]} 35. Qh8+ Kg5 {[%emt 0:00:00]} 36. Qd8+ {[%emt 0:00:49]} Kh6 {[%emt 0:00:00]} 37. Qh8+ {[%emt 0:00:06]} Kg5 38. Qf6+ Kh6 {[%emt 0:00:21]} 1/2-1/2

[Event "RUS-ch Women Rapid 2019"]
[Site "Sochi"]
[Date "2019.10.16"]
[Round "9.9"]
[White "Belenkaya, Dina"]
[Black "Maltsevskaya, Aleksandra"]
[Result "0-1"]
[ECO "B24"]
[WhiteElo "2185"]
[BlackElo "2304"]
[Annotator "NA"]
[PlyCount "54"]
[EventDate "2019.10.15"]
[EventType "swiss"]
[EventCountry "RUS"]
[SourceTitle "playchess.com"]
[Source "ChessBase"]
[SourceQuality "1"]
[TimeControl "900+10"]

1. e4 {[%emt 0:00:00]} c5 {[%emt 0:00:00]} 2. Nc3 {[%emt 0:00:00]} Nc6 {[%emt 0:00:00]} 3. g3 {[%emt 0:00:00]} g6 {[%emt 0:00:13]} 4. Bg2 {[%emt 0:00:00]} Bg7 {[%emt 0:00:02]} 5. d3 {[%emt 0:00:05]} e6 {[%emt 0:00:04]} 6. Nf3 {[%emt 0:00:12]} Nge7 {[%emt 0:00:02]} 7. Bg5 {[%emt 0:00:03]} h6 {[%emt 0:00:19]} 8. Be3 {[%emt 0:00:02]} b6 {[%emt 0:00:02]} 9. Qd2 {[%emt 0:00:20]} d5 {[%emt 0:00:49]} 10. exd5 {[%emt 0:00:39]} exd5 {[%emt 0:00:02]} 11. d4 {[%emt 0:00:08]} O-O {[%emt 0:02:32]} 12. O-O-O {[%emt 0:03:19]} Nf5 {[%emt 0:01:34]} 13. dxc5 {[%emt 0:01:27]} d4 {[%emt 0:00:27]} 14. Nxd4 {[%emt 0:00:39]} Nfxd4 {[%emt 0:02:00]} 15. Bxd4 {[%emt 0:01:16]} Nxd4 {[%emt 0:00:02]} 16. Bxa8 {[%emt 0:00:41]} Bg4 {[%emt 0:00:22]} 17. f3 {[%emt 0:00:42]} Be6 {[%emt 0:00:03]} 18. Be4 {[%emt 0:01:13]} bxc5 {[%emt 0:00:02]} 19. Nb5 {[%emt 0:01:11]} Qb6 {[%emt 0:00:15]} 20. Nxd4 {[%emt 0:00:11]} cxd4 {[%emt 0:00:04]} 21. Qd3 {[%emt 0:02:10]} Rb8 {[%emt 0:00:14]} 22. f4 {[%emt 0:01:13]} Qxb2+ {[%emt 0:00:17]} 23. Kd2 {[%emt 0:00:02]} Qb4+ {[%emt 0:00:02]} 24. c3 {[%emt 0:00:59]} dxc3+ {[%emt 0:00:03]} 25. Ke3 {[%emt 0:00:04]} Qc5+ {[%emt 0:00:09]} 26. Kf3 {[%emt 0:00:04]} Rb2 {[%emt 0:00:03]} 27. Rhf1 {[%emt 0:01:21]} Bg4+ {[%emt 0:00:02]} 0-1

[Event "RUS-ch Women Rapid 2019"]
[Site "Sochi"]
[Date "2019.10.16"]
[Round "10.1"]
[White "Chernyak, Viktoria"]
[Black "Pogonina, Natalija"]
[Result "1/2-1/2"]
[ECO "A13"]
[WhiteElo "2284"]
[BlackElo "2501"]
[Annotator "RC"]
[PlyCount "132"]
[EventDate "2019.10.15"]
[EventType "swiss"]
[EventCountry "RUS"]
[SourceTitle "playchess.com"]
[Source "ChessBase"]
[SourceQuality "1"]
[TimeControl "900+10"]

1. c4 {[%emt 0:00:00]} e6 {[%emt 0:00:00]} 2. Nf3 {[%emt 0:00:02]} d5 {[%emt 0:00:00]} 3. e3 {[%emt 0:00:05]} Nf6 {[%emt 0:00:00]} 4. Nc3 {[%emt 0:00:41]} b6 {[%emt 0:00:14]} 5. cxd5 {[%emt 0:00:22]} exd5 {[%emt 0:00:05]} 6. d4 {[%emt 0:00:01]} a6 {[%emt 0:00:11]} 7. Qc2 {[%emt 0:00:31]} Bb7 {[%emt 0:00:05]} 8. Be2 {[%emt 0:00:35]} Nbd7 {[%emt 0:00:03]} 9. O-O {[%emt 0:00:02]} Bd6 {[%emt 0:00:04]} 10. b3 {[%emt 0:00:36]} O-O {[%emt 0:00:05]} 11. Bb2 {[%emt 0:00:15]} Qe7 {[%emt 0:00:04]} 12. Rac1 {[%emt 0:00:11]} Rac8 {[%emt 0:00:26]} 13. Bd3 {[%emt 0:00:09]} Ne4 {[%emt 0:01:11]} 14. Ne2 {[%emt 0:01:38]} h6 {[%emt 0:00:26]} 15. Ng3 {[%emt 0:00:30]} f5 {[%emt 0:01:53]} 16. Qe2 {[%emt 0:00:09]} Qe6 {[%emt 0:01:26]} 17. Ne5 {[%emt 0:01:39]} Nxe5 18. dxe5 {[%emt 0:00:02]} Bxe5 {[%emt 0:02:25]} 19. Bxe5 {[%emt 0:00:13]} Qxe5 {[%emt 0:00:03]} 20. Bxa6 {[%emt 0:00:12]} Nc3 {[%emt 0:02:35]} 21. Qd3 {[%emt 0:00:18]} Bxa6 {[%emt 0:00:03]} 22. Qxa6 {[%emt 0:00:08]} Ra8 {[%emt 0:00:03]} 23. Qb7 {[%emt 0:00:25]} Rxa2 {[%emt 0:01:24]} 24. Qc6 {[%emt 0:00:04]} Ne2+ {[%emt 0:00:17]} 25. Nxe2 {[%emt 0:00:14]} Rxe2 {[%emt 0:00:03]} 26. Qxc7 {[%emt 0:00:09]} Qxc7 {[%emt 0:00:02]} 27. Rxc7 {[%emt 0:00:01]} Rb2 {[%emt 0:00:02]} 28. Rd7 {[%emt 0:00:53]} f4 {[%emt 0:00:13]} 29. Rxd5 {[%emt 0:00:26]} fxe3 {[%emt 0:01:09]} 30. fxe3 {[%emt 0:00:03]} Rc8 {[%emt 0:00:04]} 31. Rdf5 {[%emt 0:05:07]} Rxb3 {[%emt 0:00:03]} 32. R5f3 {[%emt 0:00:50]} Rc2 {[%emt 0:01:00]} 33. Re1 {[%emt 0:00:46]} Rbb2 {[%emt 0:00:13]} 34. Rg3 {[%emt 0:00:01]} b5 {[%emt 0:01:16]} 35. e4 {[%emt 0:00:02]} Rd2 {[%emt 0:00:59]} 36. h3 {[%emt 0:00:15]} Rbc2 {[%emt 0:00:17]} 37. Rb1 {[%emt 0:00:45]} Rb2 {[%emt 0:00:06]} 38. Re1 {[%emt 0:00:44]} b4 {[%emt 0:00:35]} 39. e5 {[%emt 0:00:06]} Re2 {[%emt 0:00:03]} 40. Rc1 {[%emt 0:02:01]} Rxe5 {[%emt 0:01:15]} 41. Rc7 {[%emt 0:00:01]} Rg5 {[%emt 0:00:13]} 42. Rxg5 {[%emt 0:00:01]} hxg5 {[%emt 0:00:01]} 43. Rc5 {[%emt 0:00:35]} b3 {[%emt 0:00:01]} 44. Rxg5 {[%emt 0:00:03]} Rc2 {[%emt 0:00:02]} 45. Rb5 {[%emt 0:00:03]} b2 {[%emt 0:00:02]} 46. Kh2 {[%emt 0:00:02]} Kf7 {[%emt 0:00:04]} 47. Rb6 {[%emt 0:00:04]} Ke7 {[%emt 0:00:06]} 48. h4 {[%emt 0:00:08]} Kd7 {[%emt 0:00:04]} 49. Kh3 {[%emt 0:00:26]} Kc7 {[%emt 0:00:01]} 50. Rb3 {[%emt 0:00:27]} Kd6 {[%emt 0:00:08]} 51. Rb8 {[%emt 0:00:06]} Kd5 {[%emt 0:00:07]} 52. h5 {[%emt 0:00:15]} Kc4 {[%emt 0:00:06]} 53. g3 {[%emt 0:00:03]} Kc3 {[%emt 0:00:12]} 54. Kh4 {[%emt 0:00:15]} Rg2 {[%emt 0:00:43]} 55. g4 {[%emt 0:00:10]} Kc2 {[%emt 0:00:08]} 56. Kg5 {[%emt 0:00:11]} b1=Q {[%emt 0:00:10]} 57. Rxb1 {[%emt 0:00:02]} Kxb1 {[%emt 0:00:02]} 58. Kf5 {[%emt 0:00:04]} Kc2 {[%emt 0:00:13]} 59. g5 {[%emt 0:00:01]} Kd3 {[%emt 0:00:08]} 60. h6 {[%emt 0:00:29]} gxh6 {[%emt 0:00:03]} 61. gxh6 {[%emt 0:00:01]} Rh2 {[%emt 0:00:58]} 62. Kg6 {[%emt 0:00:01]} Ke4 {[%emt 0:00:01]} 63. h7 {[%emt 0:00:03]} Ke5 {[%emt 0:00:31]} 64. Kg7 {[%emt 0:00:03]} Rg2+ {[%emt 0:00:04]} 65. Kf7 {[%emt 0:00:06]} Rh2 {[%emt 0:00:03]} 66. Kg7 {[%emt 0:00:01]} Rg2+ 1/2-1/2

[Event "RUS-ch Women Rapid 2019"]
[Site "Sochi"]
[Date "2019.10.16"]
[Round "10.2"]
[White "Sukhareva, Evgeniya"]
[Black "Voit, Daria"]
[Result "1/2-1/2"]
[ECO "A50"]
[WhiteElo "2122"]
[BlackElo "2361"]
[Annotator "NA"]
[PlyCount "71"]
[EventDate "2019.10.15"]
[EventType "swiss"]
[EventCountry "RUS"]
[SourceTitle "playchess.com"]
[Source "ChessBase"]
[SourceQuality "1"]
[TimeControl "900+10"]

1. d4 {[%emt 0:00:00]} Nf6 {[%emt 0:00:00]} 2. c4 {[%emt 0:00:00]} b6 {[%emt 0:00:00]} 3. Nc3 {[%emt 0:00:06]} Bb7 {[%emt 0:00:00]} 4. Qc2 {[%emt 0:00:04]} d5 {[%emt 0:00:09]} 5. cxd5 {[%emt 0:00:12]} Nxd5 {[%emt 0:00:01]} 6. e4 {[%emt 0:00:01]} Nxc3 {[%emt 0:00:09]} 7. bxc3 {[%emt 0:00:02]} e6 {[%emt 0:00:01]} 8. Nf3 {[%emt 0:00:20]} Be7 {[%emt 0:00:08]} 9. Bb5+ {[%emt 0:00:36]} c6 {[%emt 0:00:01]} 10. Bd3 {[%emt 0:00:01]} c5 {[%emt 0:00:17]} 11. O-O {[%emt 0:00:19]} O-O {[%emt 0:00:15]} 12. Bb2 {[%emt 0:01:50]} Qc8 {[%emt 0:01:50]} 13. Qe2 {[%emt 0:00:45]} Ba6 {[%emt 0:00:42]} 14. d5 {[%emt 0:01:19]} exd5 {[%emt 0:00:09]} 15. exd5 {[%emt 0:00:04]} Bxd3 {[%emt 0:00:51]} 16. Qxd3 {[%emt 0:00:01]} Bf6 {[%emt 0:00:01]} 17. Rab1 {[%emt 0:00:44]} c4 {[%emt 0:01:05]} 18. Qc2 {[%emt 0:02:41]} Qc5 {[%emt 0:00:43]} 19. Rbd1 {[%emt 0:00:23]} Rd8 {[%emt 0:00:25]} 20. Rfe1 {[%emt 0:06:25]} Na6 {[%emt 0:01:20]} 21. Nd2 {[%emt 0:01:31]} Rxd5 {[%emt 0:05:31]} 22. Ne4 {[%emt 0:00:14]} Rxd1 {[%emt 0:00:05]} 23. Nxf6+ {[%emt 0:00:06]} gxf6 {[%emt 0:00:01]} 24. Qxd1 {[%emt 0:00:05]} Nc7 {[%emt 0:00:13]} 25. Bc1 {[%emt 0:00:10]} h5 {[%emt 0:03:05]} 26. Re3 {[%emt 0:00:05]} Re8 {[%emt 0:01:02]} 27. Rg3+ {[%emt 0:00:27]} Kf8 {[%emt 0:00:30]} 28. h3 {[%emt 0:00:43]} Ne6 {[%emt 0:00:19]} 29. Qa4 {[%emt 0:00:14]} Qe5 {[%emt 0:00:36]} 30. Bh6+ {[%emt 0:00:16]} Ke7 {[%emt 0:00:01]} 31. Qxa7+ {[%emt 0:00:02]} Qc7 {[%emt 0:00:01]} 32. Qa3+ {[%emt 0:00:18]} Qc5 {[%emt 0:00:01]} 33. Qa7+ {[%emt 0:00:03]} Qc7 {[%emt 0:00:01]} 34. Qa3+ {[%emt 0:00:15]} Qc5 {[%emt 0:00:01]} 35. Qa7+ {[%emt 0:00:01]} Qc7 {[%emt 0:00:01]} 36. Qa3+ {[%emt 0:00:13]} 1/2-1/2

[Event "RUS-ch Women Rapid 2019"]
[Site "Sochi"]
[Date "2019.10.16"]
[Round "10.3"]
[White "Bodnaruk, Anastasia"]
[Black "Charochkina, Daria"]
[Result "1-0"]
[ECO "B12"]
[WhiteElo "2449"]
[BlackElo "2289"]
[Annotator "NA"]
[PlyCount "83"]
[EventDate "2019.10.15"]
[EventType "swiss"]
[EventCountry "RUS"]
[SourceTitle "playchess.com"]
[Source "ChessBase"]
[SourceQuality "1"]
[TimeControl "900+10"]

1. e4 {[%emt 0:00:00]} c6 {[%emt 0:00:00]} 2. d4 {[%emt 0:00:00]} d5 {[%emt 0:00:00]} 3. e5 {[%emt 0:00:00]} c5 {[%emt 0:00:00]} 4. dxc5 {[%emt 0:00:00]} e6 {[%emt 0:00:00]} 5. a3 {[%emt 0:00:00]} Bxc5 {[%emt 0:00:00]} 6. b4 {[%emt 0:00:00]} Bb6 {[%emt 0:00:00]} 7. Nf3 {[%emt 0:00:00]} Ne7 {[%emt 0:00:02]} 8. Bd3 {[%emt 0:00:01]} Ng6 {[%emt 0:02:27]} 9. O-O {[%emt 0:00:01]} Nc6 {[%emt 0:00:00]} 10. Re1 {[%emt 0:00:24]} a5 {[%emt 0:00:11]} 11. bxa5 {[%emt 0:01:17]} Bxa5 {[%emt 0:00:22]} 12. Bd2 {[%emt 0:00:08]} O-O {[%emt 0:00:09]} 13. Bxa5 {[%emt 0:02:05]} Rxa5 {[%emt 0:00:31]} 14. Nbd2 {[%emt 0:00:09]} Qe7 {[%emt 0:00:51]} 15. a4 {[%emt 0:00:12]} Nb4 {[%emt 0:00:40]} 16. Nb3 {[%emt 0:00:56]} Ra8 {[%emt 0:00:26]} 17. Bf1 {[%emt 0:00:53]} Bd7 {[%emt 0:00:08]} 18. c3 {[%emt 0:00:28]} Nc6 {[%emt 0:01:08]} 19. Bb5 {[%emt 0:02:11]} Na5 {[%emt 0:00:30]} 20. Nbd4 {[%emt 0:00:11]} Rfc8 {[%emt 0:00:06]} 21. Bxd7 {[%emt 0:01:42]} Qxd7 {[%emt 0:00:02]} 22. Nb5 {[%emt 0:00:01]} Nc4 {[%emt 0:00:44]} 23. Rb1 {[%emt 0:00:03]} Ra6 {[%emt 0:00:41]} 24. Rb4 {[%emt 0:00:14]} Qd8 {[%emt 0:01:00]} 25. g3 {[%emt 0:02:11]} Ne7 {[%emt 0:00:06]} 26. Nbd4 {[%emt 0:01:23]} Qc7 {[%emt 0:00:25]} 27. Qb1 {[%emt 0:00:57]} b6 {[%emt 0:00:57]} 28. Nb5 {[%emt 0:01:11]} Qb8 {[%emt 0:00:21]} 29. Ng5 {[%emt 0:00:20]} g6 {[%emt 0:00:26]} 30. Nf3 {[%emt 0:01:44]} Nc6 {[%emt 0:00:24]} 31. Rxc4 {[%emt 0:00:20]} dxc4 {[%emt 0:00:03]} 32. Qc1 {[%emt 0:00:10]} Ne7 {[%emt 0:02:32]} 33. Nd6 {[%emt 0:00:26]} Rd8 {[%emt 0:00:05]} 34. Qh6 {[%emt 0:00:26]} Ra7 {[%emt 0:02:27]} 35. Ng5 {[%emt 0:00:06]} Nf5 {[%emt 0:00:01]} 36. Qxh7+ {[%emt 0:00:07]} Kf8 {[%emt 0:00:00]} 37. Ndxf7 {[%emt 0:00:27]} Re8 {[%emt 0:02:19]} 38. Rd1 {[%emt 0:00:05]} Qxe5 {[%emt 0:00:59]} 39. Nxe5 {[%emt 0:00:01]} Rxh7 {[%emt 0:00:01]} 40. Nxh7+ {[%emt 0:00:01]} Kg7 {[%emt 0:00:01]} 41. Ng5 {[%emt 0:00:01]} Kf6 {[%emt 0:00:00]} 42. f4 {[%emt 0:00:00]} 1-0

[Event "RUS-ch Women Rapid 2019"]
[Site "Sochi"]
[Date "2019.10.16"]
[Round "10.4"]
[White "Goltseva, Ekaterina"]
[Black "Maltsevskaya, Aleksandra"]
[Result "1-0"]
[ECO "A58"]
[WhiteElo "2317"]
[BlackElo "2304"]
[Annotator "NA"]
[PlyCount "81"]
[EventDate "2019.10.15"]
[EventType "swiss"]
[EventCountry "RUS"]
[SourceTitle "playchess.com"]
[Source "ChessBase"]
[SourceQuality "1"]
[TimeControl "900+10"]

1. d4 {[%emt 0:00:00]} Nf6 {[%emt 0:00:00]} 2. c4 {[%emt 0:00:00]} c5 {[%emt 0:00:00]} 3. d5 {[%emt 0:00:00]} b5 {[%emt 0:00:00]} 4. cxb5 {[%emt 0:00:00]} a6 {[%emt 0:00:00]} 5. bxa6 {[%emt 0:00:00]} e6 {[%emt 0:00:00]} 6. Nc3 {[%emt 0:00:51]} exd5 {[%emt 0:00:03]} 7. Nxd5 {[%emt 0:00:12]} Be7 {[%emt 0:00:02]} 8. e3 {[%emt 0:03:05]} O-O {[%emt 0:00:04]} 9. Nf3 {[%emt 0:00:21]} Rxa6 {[%emt 0:00:42]} 10. Nxe7+ {[%emt 0:01:32]} Qxe7 {[%emt 0:00:02]} 11. Be2 {[%emt 0:00:07]} Ne4 {[%emt 0:01:17]} 12. O-O {[%emt 0:00:36]} Rg6 {[%emt 0:00:11]} 13. Ne1 {[%emt 0:04:45]} Bb7 {[%emt 0:03:33]} 14. f3 {[%emt 0:00:41]} Ng5 {[%emt 0:00:01]} 15. e4 {[%emt 0:01:59]} Nc6 {[%emt 0:00:41]} 16. Nd3 {[%emt 0:00:18]} Nd4 {[%emt 0:01:03]} 17. Nf4 {[%emt 0:00:57]} Rd6 {[%emt 0:00:02]} 18. Bd2 {[%emt 0:00:25]} Nge6 {[%emt 0:07:43]} 19. Bc4 {[%emt 0:00:38]} Nxf4 {[%emt 0:01:02]} 20. Bxf4 {[%emt 0:00:01]} Rg6 {[%emt 0:00:05]} 21. Be3 {[%emt 0:00:25]} d5 {[%emt 0:00:24]} 22. Bxd4 {[%emt 0:00:17]} dxe4 {[%emt 0:01:19]} 23. Bc3 {[%emt 0:01:17]} exf3 {[%emt 0:00:09]} 24. Rxf3 {[%emt 0:00:01]} Rd8 {[%emt 0:00:24]} 25. Qf1 {[%emt 0:00:18]} Bxf3 {[%emt 0:00:11]} 26. Qxf3 {[%emt 0:00:02]} Kh8 {[%emt 0:00:02]} 27. Re1 {[%emt 0:00:07]} Qg5 {[%emt 0:00:03]} 28. a4 {[%emt 0:00:28]} f5 {[%emt 0:00:16]} 29. a5 {[%emt 0:00:08]} Qh4 {[%emt 0:00:15]} 30. Bf1 {[%emt 0:00:15]} f4 {[%emt 0:00:11]} 31. Qe4 {[%emt 0:00:09]} Rg8 {[%emt 0:00:13]} 32. Qf3 {[%emt 0:00:12]} Rh6 {[%emt 0:00:04]} 33. h3 {[%emt 0:00:03]} Rg6 {[%emt 0:00:00]} 34. Re4 {[%emt 0:00:09]} Rf8 {[%emt 0:00:04]} 35. Be1 {[%emt 0:00:04]} Qf6 {[%emt 0:00:24]} 36. b3 {[%emt 0:00:15]} h6 {[%emt 0:00:11]} 37. a6 {[%emt 0:00:02]} Qa1 {[%emt 0:00:06]} 38. Bf2 {[%emt 0:00:21]} Rd6 {[%emt 0:00:13]} 39. Bxc5 {[%emt 0:00:07]} Rd3 {[%emt 0:00:17]} 40. Qxd3 {[%emt 0:00:07]} f3 {[%emt 0:00:01]} 41. Bxf8 {[%emt 0:00:06]} 1-0